[Event "Wuerttemberg Rapid Teams 2024"]
[Site "B?blingen, Germany"]
[Date "2024.04.13"]
[Round "9.40"]
[White "Gillam, Simon R"]
[Black "Merkel, Philip"]
[Result "0-1"]
[ECO "D10"]
[WhiteElo "2235"]
[BlackElo "1726"]
[Annotator "RC"]
[PlyCount "96"]
[EventDate "2024.04.13"]
[EventType "team-tourn"]
[SourceTitle "playchess.com"]
[Source "ChessBase"]
[SourceQuality "1"]
[TimeControl "900+5"]

1. c4 {[%emt 0:00:01]} c6 {[%emt 0:00:01]} 2. Nc3 {[%emt 0:00:03]} d5 {[%emt 0:00:01]} 3. cxd5 {[%emt 0:00:04]} cxd5 {[%emt 0:00:00]} 4. d4 {[%emt 0:00:01]} Nc6 {[%emt 0:00:01]} 5. g3 {[%emt 0:00:06]} Bf5 {[%emt 0:00:03]} 6. Bg2 {[%emt 0:00:03]} e6 {[%emt 0:00:01]} 7. e4 {[%emt 0:00:29]} dxe4 {[%emt 0:00:05]} 8. Nxe4 {[%emt 0:00:04]} Qxd4 {[%emt 0:00:08]} 9. Qxd4 {[%emt 0:00:28]} Nxd4 {[%emt 0:00:02]} 10. Rb1 {[%emt 0:00:34]} Bb4+ {[%emt 0:00:52]} 11. Bd2 {[%emt 0:00:08]} Bxd2+ {[%emt 0:00:25]} 12. Kxd2 {[%emt 0:00:16]} O-O-O {[%emt 0:00:05]} 13. Rc1+ {[%emt 0:00:40]} Nc6+ {[%emt 0:00:17]} 14. Ke2 {[%emt 0:00:55]} Nge7 {[%emt 0:00:18]} 15. Ng5 {[%emt 0:00:31]} Bd3+ {[%emt 0:00:59]} 16. Ke3 {[%emt 0:01:08]} Nf5+ {[%emt 0:01:42]} 17. Kf4 {[%emt 0:00:27]} Rd4+ {[%emt 0:00:09]} 18. Be4 {[%emt 0:00:40]} Nd6 {[%emt 0:01:11]} 19. Re1 {[%emt 0:00:36]} f5 {[%emt 0:00:02]} 20. N1f3 {[%emt 0:00:11]} e5+ {[%emt 0:01:04]} 21. Nxe5 {[%emt 0:00:47]} Nxe5 {[%emt 0:00:21]} 22. Kxe5 {[%emt 0:00:13]} Bxe4 {[%emt 0:00:32]} 23. Nxe4 {[%emt 0:00:15]} Rxe4+ {[%emt 0:00:26]} 24. Kxd6 {[%emt 0:00:35]} Rd8+ {[%emt 0:00:07]} 25. Kc5 {[%emt 0:00:11]} b6+ {[%emt 0:00:22]} 26. Kb5 {[%emt 0:00:14]} Rd5+ {[%emt 0:00:05]} 27. Kc6 {[%emt 0:00:31]} Rc5+ {[%emt 0:00:12]} 28. Kd6 {[%emt 0:00:07]} Rd4+ {[%emt 0:01:40]} 29. Ke6 {[%emt 0:00:13]} Kc7 {[%emt 0:01:24]} 30. Re5 {[%emt 0:00:42]} Rd6+ {[%emt 0:01:08]} 31. Kxf5 {[%emt 0:00:11]} Rf6+ {[%emt 0:00:03]} 32. Ke4 {[%emt 0:00:11]} Rxe5+ {[%emt 0:00:01]} 33. Kxe5 {[%emt 0:00:03]} Rxf2 {[%emt 0:00:01]} 34. Ke6 {[%emt 0:00:10]} Rxb2 {[%emt 0:00:13]} 35. Rc1+ {[%emt 0:00:07]} Kb7 {[%emt 0:00:13]} 36. Rh1 {[%emt 0:00:16]} Rxa2 {[%emt 0:00:02]} 37. Kf7 {[%emt 0:00:02]} Rc2 {[%emt 0:01:22]} 38. Kxg7 {[%emt 0:00:11]} Rc7+ {[%emt 0:00:01]} 39. Kh6 {[%emt 0:00:03]} a5 {[%emt 0:00:01]} 40. g4 {[%emt 0:00:09]} a4 {[%emt 0:00:03]} 41. g5 {[%emt 0:00:05]} b5 {[%emt 0:00:02]} 42. g6 {[%emt 0:01:30]} hxg6 {[%emt 0:00:02]} 43. Kxg6 {[%emt 0:00:02]} a3 {[%emt 0:00:08]} 44. h4 {[%emt 0:00:02]} b4 {[%emt 0:00:07]} 45. h5 {[%emt 0:00:03]} b3 {[%emt 0:00:12]} 46. h6 {[%emt 0:00:29]} b2 {[%emt 0:00:39]} 47. h7 {[%emt 0:00:12]} Rxh7 {[%emt 0:00:02]} 48. Kxh7 {[%emt 0:00:02]} a2 {[%emt 0:00:14]} 0-1